bitfinex/quotes_SOLUSD_20240829
["timestamp","ask_amount","ask_price","bid_price","bid_amount"]
[1724949710453,0.25098,145.91,145.86,15.9953]
[1724949713158,12.66435055,145.9,145.86,15.9953]
[1724949713329,45.25098,145.89,145.86,15.9953]
[1724949713654,12.66435055,145.88,145.86,15.9953]
[1724949713838,0.25098,145.87,145.84,6.3651]
[1724949714154,12.66435055,145.86,145.84,6.3651]
[1724949714455,0.25098,145.85,145.82,16.6251]
[1724949714653,0.25098,145.85,145.83,3.16523508]
[1724949714862,0.25098,145.85,145.84,3.16523508]
[1724949715225,0.25098,145.85,145.83,3.16523508]
[1724949715451,0.25098,145.85,145.82,16.6251]
[1724949715653,0.25098,145.85,145.83,3.1651643]
[1724949715957,0.25098,145.85,145.82,16.6251]
[1724949716133,0.25098,145.86,145.83,3.16514004]
[1724949716330,0.25098,145.86,145.82,16.6251]
[1724949716534,0.25098,145.87,145.83,3.16513518]
[1724949716750,0.25098,145.87,145.82,16.6251]
[1724949716978,0.25098,145.87,145.83,3.16513346]
[1724949717150,0.25098,145.87,145.82,16.6251]
[1724949717449,0.25098,145.87,145.83,3.16513385]
[1724949717642,0.25098,145.87,145.82,16.6251]
[1724949717856,45.25098,145.87,145.83,3.16515678]
[1724949718046,45.25098,145.87,145.82,16.6251]
[1724949718544,45.25098,145.87,145.83,3.1651578]
[1724949718747,45.25098,145.87,145.82,16.6251]
[1724949718949,45.25098,145.87,145.83,3.1651225]
[1724949719133,45.25098,145.87,145.82,16.6251]
[1724949719336,45.25098,145.87,145.83,3.1651225]
[1724949719537,45.25098,145.87,145.82,16.6251]
[1724949719736,45.25098,145.87,145.83,3.1651574]
[1724949719937,45.25098,145.87,145.82,16.6251]
[1724949720134,45.25098,145.87,145.83,3.1651578]
[1724949720336,45.25098,145.87,145.82,16.6251]
[1724949728661,12.66435055,145.86,145.82,16.6251]
[1724949728964,0.25098,145.85,145.82,16.6251]
[1724949730660,0.25098,145.86,145.82,16.6251]
[1724949731243,12.66435055,145.88,145.82,16.6251]
[1724949731764,1.19542501,145.92,145.82,16.6251]
[1724949732065,12.66435055,145.9,145.82,16.6251]
[1724949733053,0.25098,145.89,145.82,16.6251]
[1724949733749,0.25098,145.89,145.82,29.28945055]
[1724949736079,0.12549,145.89,145.82,29.28945055]
[1724949736385,12.66435055,145.9,145.82,29.28945055]
[1724949737273,0.12549,145.89,145.82,29.28945055]
[1724949737475,0.25098,145.89,145.82,29.28945055]
[1724949738055,0.25098,145.89,145.82,16.6251]
[1724949738268,12.66435055,145.88,145.8,6.6301]
[1724949738476,45.25098,145.87,145.8,6.6301]
[1724949742864,12.66435055,145.86,145.8,6.6301]
[1724949743093,45.25098,145.85,145.8,6.6301]
[1724949743265,0.25098,145.85,145.8,6.6301]
[1724949743464,12.66435055,145.88,145.8,6.6301]
[1724949743668,45.25098,145.87,145.8,6.6301]
[1724949744186,45.25098,145.87,145.79,15.9466]
[1724949744187,12.66435055,145.84,145.79,15.9466]
[1724949744359,0.25098,145.83,145.77,6.3308]
[1724949744688,45.25098,145.83,145.78,20.0]
[1724949746392,45.25098,145.83,145.77,6.3308]
[1724949747575,12.66435055,145.82,145.77,6.3308]
[1724949747784,0.25098,145.81,145.77,6.3308]
[1724949747991,0.25098,145.81,145.75,15.7673]
[1724949748285,45.25098,145.81,145.75,15.7673]
[1724949750804,12.66435055,145.8,145.75,15.7673]
[1724949750981,0.25098,145.79,145.75,15.7673]
[1724949754984,12.66435055,145.8,145.75,15.7673]
[1724949755190,12.66435055,145.82,145.75,15.7673]
[1724949755398,0.25098,145.81,145.78,6.8596]
[1724949757081,0.25098,145.81,145.79,6.8591]
[1724949757272,0.25098,145.81,145.78,6.8595]
[1724949760073,7.10948,145.81,145.77,24.01]
[1724949760885,19.52305055,145.8,145.77,17.1501]
[1724949761090,0.25098,145.79,145.77,17.1501]
[1724949762471,12.66435055,145.82,145.77,24.0099]
[1724949762695,0.25098,145.81,145.77,24.0099]
[1724949763291,7.10948,145.81,145.77,24.0099]
[1724949764675,0.25098,145.81,145.78,6.8595]
[1724949765200,0.12549,145.81,145.79,6.8591]
[1724949765403,19.52215055,145.82,145.78,6.8595]
[1724949765596,0.12549,145.81,145.78,6.8595]
[1724949766098,19.52215055,145.82,145.78,6.8595]
[1724949767586,6.8578,145.82,145.78,6.8595]
[1724949769089,0.12549,145.81,145.79,6.8591]
[1724949769404,6.8578,145.82,145.79,6.8591]
[1724949770202,6.8578,145.82,145.78,6.8595]
[1724949770402,0.12549,145.83,145.8,6.8586]
[1724949770581,0.25098,145.83,145.8,6.8586]
[1724949771508,6.8566,145.85,145.81,6.8581]
[1724949771699,19.52035055,145.86,145.82,6.8577]
[1724949771877,6.856,145.86,145.82,6.8577]
[1724949774205,12.66435055,145.86,145.81,17.1454]
[1724949774381,0.25098,145.85,145.81,17.1454]
[1724949774715,7.10738,145.85,145.81,24.0032]
[1724949775309,0.12549,145.85,145.81,24.0032]
[1724949775607,6.98199,145.85,145.81,24.0032]
[1724949775785,0.12549,145.84,145.81,24.0032]
[1724949777695,6.98199,145.85,145.81,24.0032]
[1724949779809,1.19542448,145.91,145.79,18.81765055]
[1724949779979,1.19542448,145.91,145.82,15.9364]
[1724949779980,19.51845055,145.9,145.82,15.9364]
[1724949780187,19.51845055,145.9,145.85,23.9967]
[1724949780398,6.8559,145.86,145.82,15.9364]
[1724949780599,19.52025055,145.86,145.82,22.7941]
[1724949781093,12.66435055,145.86,145.8,6.8586]
[1724949781292,6.8567,145.85,145.8,6.8586]
[1724949781693,0.25098,145.84,145.8,6.8586]
[1724949782204,7.10788,145.84,145.8,6.8586]
[1724949786210,19.77223055,145.84,145.79,29.4083]
[1724949786594,12.91533055,145.84,145.79,22.5493]
[1724949786797,0.25098,145.84,145.81,6.8581]
[1724949787811,7.10778,145.84,145.8,24.005]
[1724949791006,12.91533055,145.84,145.77,17.1494]
[1724949791214,19.52215055,145.82,145.78,6.8593]
[1724949791521,0.25098,145.81,145.78,6.8593]
[1724949794917,6.8576,145.83,145.79,6.8589]
[1724949795097,0.25098,145.82,145.79,6.8589]
[1724949795490,4.59920658,145.9,145.8,12.66435055]
[1724949795709,7.3535,145.91,145.84,12.66435055]
[1724949795924,342.2566,145.96,145.84,12.66435055]
[1724949795925,17.13,145.95,145.84,12.66435055]
[1724949796220,6.8531,145.92,145.88,6.8547]
[1724949796605,12.66435055,145.94,145.84,29.03315055]
[1724949796804,17.13,145.95,145.87,17.1381]
[1724949796805,6.8536,145.91,145.87,17.1381]
[1724949797116,6.8536,145.91,145.87,23.9932]
[1724949798406,0.25098,145.9,145.87,23.9932]
[1724949799815,0.25098,145.9,145.87,17.1381]
[1724949800127,45.25098,145.9,145.87,17.1381]
[1724949800425,52.10498,145.9,145.87,17.1381]
[1724949802923,52.10498,145.9,145.84,16.3688]
[1724949802924,57.91533055,145.9,145.84,40.3667]
[1724949803124,57.91533055,145.9,145.84,33.51]
[1724949803441,6.8546,145.89,145.85,6.8562]
[1724949803726,45.25098,145.88,145.85,6.8562]
[1724949805437,0.25098,145.88,145.86,6.8557]
[1724949805600,0.25098,145.89,145.86,6.8557]
[1724949807202,0.25098,145.89,145.85,6.8561]
[1724949807203,52.10548,145.89,145.85,6.8561]
[1724949809132,52.10548,145.89,145.85,6.856]
[1724949812227,45.25098,145.89,145.86,17.1396]
[1724949813120,0.25098,145.89,145.87,6.8553]
[1724949813313,0.12549,145.88,145.87,6.8553]
[1724949813526,0.12549,145.88,145.86,23.9953]
[1724949814036,0.12549,145.89,145.86,23.9953]
[1724949814628,0.12549,145.9,145.86,17.1396]
[1724949814839,0.25098,145.91,145.86,17.1396]
[1724949815409,7.10488,145.91,145.86,23.9953]
[1724949815646,45.0,145.9,145.86,23.9953]
[1724949815823,0.25098,145.89,145.86,23.9953]
[1724949818127,7.10548,145.89,145.86,17.1396]
[1724949818336,0.25098,145.89,145.86,17.1396]
[1724949819117,0.25098,145.89,145.86,23.9953]
[1724949819514,6.8535,145.91,145.87,6.8553]
[1724949819714,0.25098,145.9,145.87,6.8553]
[1724949821032,7.10498,145.9,145.86,23.9953]
[1724949821235,45.0,145.89,145.84,22.9704]
[1724949821436,0.25098,145.88,145.85,6.856]
[1724949822530,0.25098,145.88,145.86,6.8558]
[1724949822737,0.25098,145.89,145.86,6.8558]
[1724949823445,0.25098,145.89,145.85,17.1402]
[1724949823742,45.25098,145.89,145.85,17.1402]
[1724949824241,7.10558,145.89,145.85,23.9962]
[1724949825032,51.8551,145.88,145.85,17.1402]
[1724949825338,0.25098,145.87,145.85,17.1402]
[1724949825946,0.25098,145.87,145.84,29.8271]
[1724949830231,0.25098,145.87,145.84,23.2255]
[1724949832248,7.10648,145.87,145.83,6.8571]
[1724949832419,51.856,145.86,145.82,6.8577]
[1724949832614,51.856,145.86,145.81,17.1454]
[1724949832615,0.25098,145.85,145.81,17.1454]
[1724949832818,7.10728,145.85,145.81,24.0032]
[1724949833047,7.10738,145.85,145.81,24.0035]
[1724949833436,6.8568,145.84,145.81,17.1454]
[1724949833635,0.25098,145.83,145.81,17.1454]
[1724949841050,0.25098,145.83,145.8,16.0981]
[1724949841258,0.25098,145.84,145.8,16.0981]
[1724949842759,7.10778,145.84,145.8,22.9567]
[1724949845066,7.10778,145.84,145.8,6.8586]
[1724949848062,6.8593,145.79,145.74,7.60208842]
[1724949848261,6.98539,145.78,145.74,7.60208842]
[1724949849164,6.8602,145.77,145.74,6.2411]
[1724949849373,0.12549,145.78,145.74,7.60214016]
[1724949849543,6.8602,145.77,145.74,7.60214016]
[1724949850355,6.8602,145.77,145.74,6.2411]
[1724949850553,6.8602,145.77,145.74,7.61317604]
[1724949851370,6.8602,145.77,145.74,1.37207604]
[1724949851671,6.8607,145.76,145.73,1.37207604]
[1724949852372,6.8607,145.76,145.7,20.0]
[1724949853672,12.66435055,145.72,145.63,15.8694]
[1724949853979,3.8332,145.75,145.55,2.73716705]
[1724949853980,50.0,145.66,145.55,2.73716705]
[1724949854149,6.87,145.56,145.55,2.73716705]
[1724949854351,7.12098,145.56,145.55,2.73716705]
[1724949854587,8.38412083,145.56,145.55,2.73716705]
[1724949854752,6.8718,145.53,145.49,21.9917]
[1724949854953,19.53615055,145.53,145.49,21.9917]
[1724949855258,6.99739,145.52,145.49,21.9917]
[1724949856258,6.8724,145.51,145.49,15.8694]
[1724949857153,19.53675055,145.51,145.49,15.8694]
[1724949857549,6.8728,145.5,145.49,15.8694]
[1724949860153,17.30339,145.54,145.42,6.8761]
[1724949860154,31.83065397,145.51,145.42,6.8761]
[1724949860355,31.83065397,145.49,145.42,6.8761]
[1724949860583,6.8738,145.48,145.42,6.8761]
[1724949861078,6.8733,145.49,145.42,17.1906]
[1724949861252,6.8725,145.51,145.45,6.8748]
[1724949862274,6.8725,145.51,145.46,6.8746]
[1724949863167,31.83065397,145.54,145.46,6.8746]
[1724949863168,6.8719,145.52,145.46,6.8746]
[1724949864569,50.0,145.65,145.49,31.83065397]
[1724949864773,31.83065397,145.62,145.5,20.0]
[1724949865077,31.83065397,145.62,145.5,26.8726]
[1724949865078,31.83065397,145.6,145.5,26.8726]
[1724949865458,31.83065397,145.6,145.51,6.8722]
[1724949865659,31.83065397,145.6,145.52,6.8718]
[1724949865893,6.869,145.59,145.53,6.871]
[1724949866060,6.868,145.61,145.55,17.1759]
[1724949866890,6.8672,145.62,145.57,6.8694]
[1724949867186,50.19223936,145.66,145.57,6.8694]
[1724949867187,31.83065397,145.64,145.57,6.8694]
[1724949867360,6.8676,145.61,145.56,6.8699]
[1724949867978,33.02793936,145.66,145.57,17.1731]
[1724949868181,31.83065397,145.66,145.59,17.1705]
[1724949868369,6.8657,145.65,145.61,6.8675]
[1724949868784,6.8657,145.65,145.6,6.868]
[1724949869368,6.8657,145.65,145.59,24.0389]
[1724949869583,31.83065397,145.66,145.59,24.0389]
[1724949869584,6.8666,145.64,145.59,24.0389]
[1724949869789,31.83065397,145.66,145.59,17.1705]
[1724949869968,45.12549,145.65,145.57,6.8694]
[1724949870160,45.12549,145.65,145.58,6.8689]
[1724949870363,45.12549,145.65,145.58,6.869]
[1724949870583,6.8677,145.61,145.56,40.1328]
[1724949870779,0.12549,145.6,145.56,47.0027]
[1724949871293,0.25098,145.6,145.56,47.0027]
[1724949871485,0.12549,145.6,145.56,47.0027]
[1724949871685,6.868,145.61,145.56,47.0027]
[1724949873792,6.99259,145.62,145.57,6.8694]
[1724949874090,6.99259,145.62,145.58,6.869]
[1724949874289,6.99259,145.62,145.57,6.8694]
[1724949875174,0.12549,145.62,145.58,6.869]
[1724949875377,6.8668,145.63,145.58,6.869]
[1724949876197,31.95614397,145.64,145.58,6.869]
[1724949876198,6.99169,145.64,145.59,6.8685]
[1724949876384,0.25098,145.63,145.59,6.8685]
[1724949876691,7.11768,145.63,145.59,6.8685]
[1724949876891,6.8667,145.63,145.59,6.8685]
[1724949877195,31.83065397,145.66,145.6,6.8677]
[1724949877367,0.25098,145.65,145.6,6.8677]
[1724949878201,6.99129,145.65,145.61,6.8675]
[1724949878373,6.8658,145.65,145.61,6.8675]
[1724949878768,6.8665,145.64,145.58,17.1718]
[1724949879073,6.8668,145.63,145.58,24.0405]
[1724949880763,6.8675,145.62,145.58,17.1718]
[1724949881791,6.8682,145.6,145.56,29.8277]
[1724949882289,6.8689,145.59,145.56,22.958]
[1724949882795,6.8682,145.6,145.56,22.958]
[1724949882969,6.8682,145.6,145.56,29.8279]
[1724949883898,6.8678,145.61,145.56,29.8279]
[1724949884065,6.8683,145.6,145.56,29.8279]
[1724949884388,6.8678,145.61,145.56,29.8279]
[1724949884598,31.95614397,145.62,145.56,22.958]
[1724949884781,6.8677,145.61,145.57,24.0422]
[1724949885495,6.8677,145.61,145.57,17.1727]
[1724949885791,6.8686,145.59,145.56,22.958]
[1724949885995,6.8691,145.58,145.56,16.355]
[1724949886206,6.8691,145.58,145.54,24.0474]
[1724949888213,0.25098,145.6,145.56,24.0445]
[1724949888214,6.8681,145.6,145.56,24.0445]
[1724949888704,6.8682,145.6,145.56,24.0447]
[1724949892276,6.8692,145.58,145.54,6.8709]
[1724949892601,6.869,145.58,145.54,6.8707]
[1724949892793,6.8687,145.59,145.55,6.8704]
[1724949895106,6.8691,145.58,145.54,6.8707]
[1724949895405,6.8687,145.59,145.55,6.8704]
[1724949896183,6.8692,145.58,145.54,6.8709]
[1724949897129,6.8687,145.59,145.55,6.8704]
[1724949897310,6.8691,145.58,145.55,6.8704]
[1724949897810,6.8686,145.59,145.55,6.8704]
[1724949900408,0.12549,145.6,145.53,23.2195]
[1724949900585,45.25098,145.61,145.53,23.2195]
[1724949900786,6.8687,145.59,145.55,6.87]
[1724949901091,7.11908,145.61,145.57,17.1737]
[1724949901910,7.11908,145.61,145.57,24.0432]
[1724949901911,6.8681,145.61,145.57,24.0432]
[1724949902122,6.8672,145.62,145.58,6.869]
[1724949902420,6.8672,145.62,145.57,24.0429]
[1724949902626,6.8671,145.63,145.58,6.8687]
[1724949902794,6.8675,145.62,145.57,24.043]
[1724949902995,31.83065397,145.64,145.57,24.043]
[1724949903196,45.25098,145.63,145.57,24.043]
[1724949903602,6.8677,145.61,145.57,24.043]
[1724949905291,6.8684,145.6,145.54,17.1768]
[1724949905516,6.8678,145.61,145.57,6.8694]
[1724949905731,57.96404717,145.63,145.56,17.1745]
[1724949905732,6.8684,145.6,145.56,17.1745]
[1724949905891,6.99389,145.6,145.56,17.1745]
[1724949906093,6.8688,145.59,145.55,6.87]
[1724949906611,12.71306717,145.59,145.53,6.0418]
[1724949906915,6.8702,145.56,145.53,6.0418]
[1724949909036,6.8702,145.56,145.52,15.5684]
[1724949909211,0.12549,145.55,145.5,24.0539]
[1724949909415,6.8705,145.55,145.5,24.0539]
[1724949910108,6.8705,145.55,145.5,17.1812]
[1724949910512,6.8705,145.55,145.5,24.0539]
[1724949910708,0.12549,145.54,145.5,24.0539]
[1724949911344,7.12208,145.54,145.5,17.1812]
[1724949911631,6.99659,145.54,145.5,17.1812]
[1724949911831,6.8715,145.53,145.49,6.8732]
[1724949912015,6.8715,145.53,145.47,17.1852]
[1724949912928,6.8719,145.52,145.47,17.1852]
[1724949914130,6.8737,145.49,145.44,24.0645]
[1724949914348,6.8738,145.48,145.44,24.0645]
[1724949914639,6.8732,145.5,145.45,7.46500746]
[1724949914833,0.25098,145.49,145.45,7.46500746]
[1724949915333,7.12438,145.49,145.44,17.77850746]
[1724949915533,7.12438,145.49,145.45,0.58996377]
[1724949915734,0.25098,145.49,145.45,1.23633281]
[1724949916042,45.25098,145.5,145.45,1.23633281]
[1724949916332,6.8738,145.48,145.45,1.23633281]
[1724949916534,0.25098,145.5,145.43,1.23663551]
[1724949916841,0.25098,145.5,145.3,17.2056]
[1724949916842,50.0,145.43,145.3,17.2056]
[1724949917049,31.80067682,145.36,145.28,13.0799]
[1724949917217,31.80067682,145.34,145.27,39.2935]
[1724949917535,7.13188,145.33,145.27,39.2935]
[1724949917732,7.13188,145.33,145.28,6.8831]
[1724949918336,0.25098,145.33,145.28,6.8831]
[1724949918512,0.25098,145.33,145.24,6.1972]
[1724949918513,6.8819,145.31,145.24,6.1972]
[1724949918712,32.05165682,145.33,145.24,40.6214]
[1724949919041,42.50337682,145.39,145.24,40.6214]
[1724949919042,6.8792,145.37,145.28,17.2075]
[1724949919340,38.68007682,145.37,145.3,24.0864]
[1724949919510,31.80067682,145.37,145.32,24.0832]
[1724949919711,31.80067682,145.4,145.32,17.2023]
[1724949919929,31.80067682,145.4,145.34,6.8799]
[1724949921037,0.25098,145.39,145.34,6.8799]
[1724949921430,7.12918,145.39,145.34,6.8799]
[1724949921749,45.0,145.38,145.34,6.8799]
[1724949922035,0.25098,145.37,145.35,6.8799]
[1724949922240,31.80067682,145.42,145.38,6.8782]
[1724949922444,13.39014939,145.45,145.35,17.1997]
[1724949922612,6.8767,145.42,145.37,6.8785]
[1724949923018,6.8771,145.41,145.36,6.8794]
[1724949923223,6.8766,145.42,145.37,6.8788]
[1724949923421,6.8762,145.43,145.38,6.8784]
[1724949923628,6.8757,145.44,145.39,6.8779]
[1724949923835,6.8752,145.45,145.4,6.8774]
[1724949924137,6.8747,145.46,145.41,6.877]
[1724949924518,6.8752,145.45,145.4,6.8774]
[1724949925119,45.0,145.44,145.39,17.1943]
[1724949925323,6.8748,145.46,145.41,6.8767]
[1724949925524,6.8757,145.44,145.39,17.1943]
[1724949925717,6.8752,145.45,145.4,6.8775]
[1724949925927,6.8743,145.47,145.41,17.192]
[1724949926117,6.8747,145.46,145.42,6.8761]
[1724949926317,6.8755,145.45,145.4,6.8771]
[1724949926726,0.12549,145.44,145.4,6.8771]
[1724949926924,7.00149,145.44,145.39,6.878]
[1724949927313,7.00149,145.44,145.38,17.1959]
[1724949927314,6.8769,145.42,145.38,17.1959]
[1724949927818,45.25098,145.41,145.38,17.1959]
[1724949928219,52.12818,145.41,145.36,6.8793]
[1724949928438,45.25098,145.41,145.35,17.1996]
[1724949928639,52.12818,145.41,145.36,6.8793]
[1724949928941,45.25098,145.41,145.33,6.2069]
[1724949929127,45.25098,145.41,145.32,15.3122]
[1724949929128,31.80067682,145.4,145.32,32.5151]
[1724949929330,31.80067682,145.4,145.29,6.0974]
[1724949929331,6.8805,145.34,145.29,6.0974]
[1724949929534,0.12549,145.33,145.29,6.0974]
[1724949929842,0.12549,145.33,145.24,21.7343]
[1724949930222,6.8838,145.27,145.24,21.7343]
[1724949930425,0.12549,145.28,145.23,6.8855]
[1724949930636,0.12549,145.28,145.22,17.2145]
[1724949930637,45.25098,145.29,145.22,17.2145]
[1724949931441,6.8832,145.28,145.22,17.2145]
[1724949931625,0.25098,145.27,145.22,17.2145]
[1724949931811,45.25098,145.29,145.22,17.2145]
[1724949932332,39.90259127,145.34,145.26,17.2103]
[1724949932536,89.90259127,145.36,145.26,17.2103]
[1724949932734,6.8814,145.32,145.26,24.0944]
[1724949932925,0.12549,145.31,145.27,6.8833]
[1724949933529,0.12549,145.32,145.26,17.2103]
[1724949933739,0.25098,145.32,145.26,17.2103]
[1724949934047,45.25098,145.32,145.26,17.2103]
[1724949934453,45.25098,145.32,145.22,17.2144]
[1724949934632,0.25098,145.32,145.22,17.2144]
[1724949934830,0.25098,145.32,145.26,6.884]
[1724949935140,0.25098,145.32,145.28,6.883]
[1724949935467,0.25098,145.32,145.26,6.8838]
[1724949935745,7.13238,145.32,145.27,6.8836]
[1724949935959,45.0,145.31,145.27,6.8836]
[1724949936129,0.25098,145.3,145.27,6.8836]
[1724949936329,0.12549,145.29,145.27,6.8836]
[1724949936532,0.25098,145.32,145.27,6.8836]
[1724949937552,0.25098,145.32,145.28,6.8831]
[1724949938333,0.25098,145.32,145.27,6.8836]
[1724949938653,0.25098,145.32,145.29,6.8826]
[1724949938858,6.8804,145.34,145.29,6.8826]
[1724949939150,6.8804,145.34,145.28,17.2081]
[1724949939363,89.90259127,145.36,145.28,17.2081]
[1724949939529,6.8812,145.33,145.28,24.0913]
[1724949939733,6.882,145.31,145.25,6.2347]
[1724949939937,6.8818,145.31,145.25,6.2347]
[1724949940451,45.25098,145.3,145.25,6.2347]
[1724949940829,45.25098,145.3,145.24,17.2124]
[1724949941023,45.25098,145.3,145.26,6.8839]
[1724949941757,45.25098,145.3,145.27,6.8836]
[1724949941957,0.25098,145.3,145.27,6.8836]
[1724949942251,93.48677127,145.3,145.12,22.216]
[1724949942449,6.8838,145.27,145.21,6.8864]
[1724949942648,45.25098,145.26,145.21,6.8864]
[1724949942850,93.48677127,145.3,145.23,6.8855]
[1724949942851,6.8832,145.29,145.23,6.8855]
[1724949943055,0.12549,145.28,145.23,6.8855]
[1724949943357,0.12549,145.28,145.24,24.0969]
[1724949943560,6.883,145.29,145.24,24.0969]
[1724949943561,6.8817,145.32,145.24,17.2122]
[1724949943764,6.88,145.35,145.3,6.8818]
[1724949944054,39.90259127,145.39,145.25,74.32539127]
[1724949944250,6.8807,145.34,145.3,17.2047]
[1724949944460,6.88,145.35,145.3,24.0866]
[1724949944840,6.8795,145.36,145.31,6.8818]
[1724949945157,17.1942,145.4,145.32,6.8813]
[1724949945338,22.42501305,145.4,145.32,6.8813]
[1724949945529,27.18140315,145.4,145.32,6.8813]
[1724949945733,6.879,145.37,145.32,6.8813]
[1724949945940,6.879,145.37,145.33,6.8808]
[1724949946363,0.12549,145.36,145.33,6.8808]
[1724949946657,6.88,145.35,145.3,24.0865]
[1724949946955,0.12549,145.34,145.25,74.32539127]
[1724949947134,39.90259127,145.39,145.26,20.0]
[1724949947335,6.8801,145.35,145.29,17.2059]
[1724949947751,6.8801,145.35,145.26,20.0]
[1724949947752,6.8818,145.32,145.26,6.8841]
[1724949948169,45.0,145.31,145.21,56.6481]
[1724949948351,45.0,145.31,145.23,17.2137]
[1724949948538,0.25098,145.3,145.23,17.2137]
[1724949948739,0.25098,145.31,145.23,17.2137]
[1724949948969,0.12549,145.29,145.25,6.8845]
[1724949949261,45.0,145.3,145.25,6.8845]
[1724949949462,0.12549,145.29,145.25,6.8845]
[1724949949947,0.12549,145.29,145.26,17.2103]
[1724949950273,40.15357127,145.29,145.17,6.6489]
[1724949950471,6.8855,145.24,145.17,6.6489]
[1724949950763,0.12549,145.23,145.17,6.6489]
[1724949951165,40.02808127,145.29,145.19,6.8872]
[1724949951350,6.885,145.25,145.18,17.2197]
[1724949951667,6.8839,145.27,145.19,6.8873]
[1724949951862,45.12549,145.26,145.2,6.8868]
[1724949952170,0.12549,145.26,145.16,15.0954]
[1724949952546,45.25098,145.27,145.16,32.3175]
[1724949952848,6.8843,145.26,145.16,32.3175]
[1724949953158,45.25098,145.25,145.16,32.3175]
[1724949953359,52.13568,145.25,145.17,6.8881]
[1724949953872,6.8855,145.24,145.17,6.8881]
[1724949954052,45.25098,145.23,145.17,6.8881]
[1724949954780,45.25098,145.23,145.18,6.8878]
[1724949954781,0.12549,145.23,145.18,6.8878]
[1724949955549,46.78719127,145.26,145.2,6.887]
[1724949955747,0.12549,145.25,145.2,6.887]
[1724949956159,7.01019,145.25,145.19,6.8874]
[1724949956361,7.01089,145.24,145.17,6.8883]
[1724949956567,0.12549,145.23,145.18,6.8879]
[1724949956961,39.90259127,145.28,145.19,17.2183]
[1724949957154,0.25098,145.27,145.19,17.2183]
[1724949957652,0.12549,145.27,145.19,17.2183]
[1724949957859,39.90259127,145.3,145.19,17.2183]
[1724949958279,39.90259127,145.3,145.16,15.0954]
[1724949958455,6.8832,145.29,145.23,6.8855]
[1724949958653,6.8838,145.27,145.22,17.215]
[1724949959157,0.12549,145.26,145.22,17.215]
[1724949961090,7.00969,145.26,145.22,17.215]
[1724949961788,7.00969,145.26,145.2,6.887]
[1724949962085,6.8847,145.25,145.2,6.887]
[1724949962287,0.12549,145.24,145.21,6.8865]
[1724949962463,39.90259127,145.28,145.21,6.8865]
[1724949962663,45.25098,145.27,145.21,6.8865]
[1724949962865,6.8846,145.25,145.2,24.1034]
[1724949963165,6.8842,145.26,145.21,6.8865]
[1724949963967,0.12549,145.25,145.21,6.8865]
[1724949964167,7.13478,145.27,145.22,6.886]
[1724949964377,7.00929,145.27,145.22,6.886]
[1724949964569,0.12549,145.27,145.2,17.2164]
[1724949964882,6.8847,145.25,145.21,6.8865]
[1724949965072,22.82555676,145.33,145.21,6.6382]
[1724949965260,6.8818,145.31,145.27,6.8837]
[1724949965462,39.90259127,145.28,145.21,6.6382]
[1724949965665,39.90259127,145.28,145.17,6.6382]
[1724949965893,6.8866,145.21,145.17,6.6382]
[1724949966087,6.886,145.23,145.17,13.5266]
[1724949966560,7.13728,145.22,145.17,13.5266]
[1724949967061,0.25098,145.22,145.17,13.5266]
[1724949967390,0.12549,145.22,145.17,13.5266]
[1724949968192,39.90259127,145.19,145.12,17.227]
[1724949968359,39.90259127,145.17,145.06,6.43809795]
[1724949968560,6.8888,145.17,145.12,17.2271]
[1724949969282,6.8888,145.17,145.09,16.3387]
[1724949969283,0.12549,145.16,145.09,16.3387]